bitfinex-derivatives/quotes_ETHF0:USTF0_20250817
["timestamp","ask_amount","ask_price","bid_price","bid_amount"]
[1755390516967,0.82864264,4415.6,4415.1,20.524]
[1755390517171,0.82864264,4415.5,4415.1,20.524]
[1755390517371,0.82864264,4415.4,4415.1,20.524]
[1755390517571,0.82864264,4415.3,4415.1,20.524]
[1755390517775,0.82864264,4415.2,4415.1,20.524]
[1755390517972,0.20315454,4415.2,4415.1,20.524]
[1755390518169,0.20315454,4415.8,4415.1,20.524]
[1755390518374,0.82866563,4415.7,4415.1,20.524]
[1755390518574,0.82866563,4415.6,4415.1,20.524]
[1755390518769,0.82866563,4415.5,4415.1,20.524]
[1755390518969,0.20315454,4415.4,4415.1,20.524]
[1755390519168,0.20315454,4415.3,4415.1,20.524]
[1755390519373,0.20315454,4415.2,4415.1,20.524]
[1755390519674,0.20315454,4415.8,4415.1,20.524]
[1755390519975,0.6255352,4415.7,4415.1,20.524]
[1755390520273,0.82869876,4415.6,4415.1,20.524]
[1755390520468,0.20316356,4415.5,4415.1,20.524]
[1755390520674,0.20316356,4415.4,4415.1,20.524]
[1755390520875,0.20316356,4415.3,4415.1,20.524]
[1755390521074,0.20316356,4415.2,4415.1,20.524]
[1755390521271,3.2078,4415.9,4415.1,20.524]
[1755390521470,0.82857419,4415.8,4415.1,20.524]
[1755390521671,0.20313045,4415.7,4415.1,20.524]
[1755390521870,0.20313045,4415.6,4415.1,20.524]
[1755390522069,0.20313045,4415.5,4415.1,20.524]
[1755390522378,3.2078,4415.9,4415.1,20.524]
[1755390522577,0.20310816,4415.8,4415.1,20.524]
[1755390522773,0.20310816,4415.7,4415.1,20.524]
[1755390522974,0.20310816,4415.6,4415.1,20.524]
[1755390523175,0.20310816,4415.5,4415.1,20.524]
[1755390523375,3.2078,4415.9,4415.1,20.524]
[1755390523675,0.20308371,4415.8,4415.1,20.524]
[1755390523876,0.20308371,4415.7,4415.1,20.524]
[1755390524078,0.20308371,4415.6,4415.1,20.524]
[1755390524279,0.20308371,4415.5,4415.0,3.2078]
[1755390524580,3.2078,4415.9,4415.1,20.522]
[1755390524878,0.82831761,4415.8,4415.1,20.522]
[1755390525076,0.20306882,4415.7,4415.1,20.522]
[1755390525274,0.20306882,4415.6,4415.1,20.522]
[1755390525471,0.20306882,4415.5,4415.1,20.522]
[1755390525672,3.2078,4415.9,4415.1,20.522]
[1755390525879,0.2030511,4415.8,4415.4,0.45266]
[1755390526084,0.2030511,4415.7,4415.5,20.522]
[1755390526275,0.2030511,4415.6,4415.5,20.522]
[1755390527569,3.2078,4415.9,4415.5,20.522]
[1755390527776,0.20300023,4415.8,4415.5,20.522]
[1755390527981,0.20300023,4415.7,4415.5,20.522]
[1755390528184,3.2078,4415.9,4415.5,20.522]
[1755390528380,0.20297452,4415.8,4415.5,20.522]
[1755390528582,0.20297452,4415.7,4415.5,20.522]
[1755390528882,3.2078,4415.9,4415.5,20.522]
[1755390529082,0.202975,4415.8,4415.5,23.7298]
[1755390529281,3.2078,4416.4,4415.5,23.7298]
[1755390529479,0.82745983,4416.3,4415.5,23.7298]
[1755390529778,0.82745983,4416.2,4415.5,23.7298]
[1755390530074,0.2029434,4416.1,4415.5,23.7298]
[1755390530277,0.2029434,4416.0,4415.5,23.7298]
[1755390530480,0.2029434,4415.9,4415.5,23.7298]
[1755390530682,0.2029434,4415.8,4415.5,23.7298]
[1755390530882,3.2078,4416.4,4415.5,23.7298]
[1755390531082,0.82736892,4416.3,4415.5,23.7298]
[1755390531282,0.82736892,4416.2,4415.5,3.2078]
[1755390531483,0.82736892,4416.1,4415.6,20.521]
[1755390531679,0.20292101,4416.0,4415.6,20.521]
[1755390531883,0.20292101,4415.9,4415.6,20.521]
[1755390532079,0.20292101,4415.8,4415.6,20.521]
[1755390532384,0.20292101,4415.7,4415.6,20.521]
[1755390534185,3.2078,4416.4,4415.6,20.521]
[1755390534386,0.82711577,4416.3,4415.6,20.521]
[1755390534685,0.82711577,4416.2,4415.6,20.521]
[1755390534982,0.82711577,4416.1,4415.6,20.521]
[1755390535183,0.20285891,4416.0,4415.6,20.521]
[1755390535385,3.2078,4416.4,4415.6,20.521]
[1755390535386,0.20284925,4415.9,4415.6,20.521]
[1755390535584,0.20284925,4415.8,4415.6,20.521]
[1755390535785,3.2078,4416.4,4415.6,20.521]
[1755390535984,0.82707771,4416.3,4415.6,20.521]
[1755390536283,0.82707771,4416.2,4415.6,20.521]
[1755390536483,0.82707771,4416.1,4415.6,20.521]
[1755390536685,0.20284925,4416.0,4415.6,20.521]
[1755390536885,0.20284925,4415.9,4415.6,20.521]
[1755390537086,0.20284925,4415.8,4415.6,20.521]
[1755390537287,0.20284925,4415.7,4415.6,20.521]
[1755390537988,0.20370502,4416.3,4415.6,20.521]
[1755390538186,0.82799169,4416.2,4415.6,20.521]
[1755390538384,0.82799169,4416.1,4415.6,20.521]
[1755390538584,0.82800688,4416.0,4415.6,20.521]
[1755390538783,0.20372021,4415.9,4415.6,20.521]
[1755390539085,0.20372021,4415.8,4415.6,20.521]
[1755390539283,3.2078,4416.4,4415.6,20.521]
[1755390539284,0.20372021,4415.7,4415.6,20.521]
[1755390539482,0.20372021,4416.3,4415.6,20.521]
[1755390539677,0.82809088,4416.2,4415.6,20.521]
[1755390539885,0.82809088,4416.1,4415.6,20.521]
[1755390540085,3.2078,4416.4,4415.6,20.521]
[1755390540086,0.82809088,4416.0,4415.6,20.521]
[1755390540383,0.20372021,4415.9,4415.6,20.521]
[1755390540586,0.20372021,4415.8,4415.6,20.521]
[1755390540782,0.20374003,4415.7,4415.6,20.521]
[1755390548692,0.20405229,4415.7,4415.6,20.521]
[1755390551690,0.82965729,4415.7,4415.6,20.521]
[1755390553496,0.20405229,4415.7,4415.6,20.521]
[1755390555097,0.82966038,4415.7,4415.6,20.521]
[1755390556296,0.20405229,4415.7,4415.6,20.521]
[1755390556499,0.82945441,4415.7,4415.6,20.521]
[1755390557994,0.20405229,4415.7,4415.6,20.521]
[1755390558401,0.82946393,4415.7,4415.6,20.521]
[1755390564004,0.82946393,4415.7,4415.6,20.517]
[1755390569098,0.62541164,4415.7,4415.6,20.517]
[1755390569304,0.82969521,4415.7,4415.6,20.517]
[1755390575014,0.82986216,4415.7,4415.6,20.517]
[1755390583922,0.62557859,4415.7,4415.6,20.517]
[1755390584115,0.82988987,4415.7,4415.6,20.517]
[1755390590721,0.82988987,4415.7,4415.3,3.2078]
[1755390591017,0.82981141,4415.6,4415.2,20.513]
[1755390591217,3.2078,4415.4,4415.0,20.513]
[1755390591426,0.82981141,4415.3,4415.0,20.513]
[1755390591623,0.82981141,4415.2,4415.0,20.513]
[1755390591920,0.82981141,4415.1,4415.0,20.513]
[1755390592324,0.20431128,4415.1,4415.0,20.513]
[1755390595726,0.22222285,4415.3,4415.0,20.513]
[1755390595926,0.22222285,4415.2,4415.0,20.513]
[1755390596125,0.22222285,4415.1,4415.0,20.513]
[1755390598930,0.2352706,4415.1,4415.0,20.513]
[1755390600931,3.2078,4416.4,4415.3,0.45267]
[1755390601237,0.84630724,4416.3,4415.4,23.7208]
[1755390601428,0.22185942,4416.2,4415.4,23.7208]
[1755390601628,0.22185942,4416.1,4415.4,23.7208]
[1755390601829,0.22185942,4416.0,4415.4,23.7208]
[1755390602029,0.22185942,4415.9,4415.4,23.7208]
[1755390602232,0.22185942,4415.8,4415.6,0.45264]
[1755390602431,3.2078,4416.4,4415.8,0.45262]
[1755390602624,0.22192291,4416.3,4415.8,0.45262]
[1755390602829,0.22192291,4416.2,4416.0,0.4526]
[1755390603028,3.2078,4416.4,4416.1,20.513]
[1755390603231,0.22191989,4416.3,4416.1,20.513]
[1755390603534,0.22191989,4416.2,4416.1,20.513]
[1755390605436,3.2078,4417.0,4416.1,20.513]
[1755390605636,0.84594134,4416.9,4416.1,20.513]
[1755390605837,0.22175028,4416.8,4416.1,20.513]
[1755390606038,0.22175028,4416.7,4416.1,20.513]
[1755390606238,0.22175028,4416.6,4416.1,20.513]
[1755390606438,0.22175028,4416.5,4416.1,20.513]
[1755390606637,0.22175028,4416.4,4416.1,20.513]
[1755390606835,3.2078,4417.0,4416.1,20.513]
[1755390607035,0.84575471,4416.9,4416.1,20.513]
[1755390607234,0.22169705,4416.8,4416.1,20.513]
[1755390607435,0.22169705,4416.7,4416.1,20.513]
[1755390607635,0.22169705,4416.6,4416.1,20.513]
[1755390607837,0.22169705,4416.5,4416.1,20.513]
[1755390608135,0.22169705,4416.4,4416.1,20.513]
[1755390608334,3.2078,4417.0,4416.1,20.513]
[1755390608537,0.22162131,4416.9,4416.1,20.513]
[1755390608837,3.2078,4417.0,4416.1,20.513]
[1755390608838,0.22162131,4416.8,4416.1,20.513]
[1755390609040,0.22162131,4416.7,4416.1,20.513]
[1755390609239,0.22162131,4416.6,4416.1,20.513]
[1755390609439,0.22162131,4416.5,4416.0,3.2078]
[1755390609641,0.22162131,4416.4,4416.1,20.509]
[1755390609841,0.22162131,4416.3,4416.1,20.509]
[1755390610042,0.22158942,4416.2,4416.1,20.509]
[1755390610438,0.22158942,4416.2,4415.4,3.2078]
[1755390610640,0.22158942,4416.1,4415.5,20.509]
[1755390610841,0.22158942,4416.0,4415.5,20.509]
[1755390611042,0.22158942,4415.9,4415.5,20.509]
[1755390611242,3.2078,4416.5,4415.5,20.509]
[1755390611243,0.22158942,4415.8,4415.5,20.509]
[1755390611441,3.2078,4416.5,4415.5,20.509]
[1755390611642,0.84495209,4416.4,4415.5,20.509]
[1755390611836,0.22150981,4416.3,4415.5,20.509]
[1755390612040,0.22150981,4416.2,4415.5,20.509]
[1755390612242,3.2078,4416.5,4415.5,20.509]
[1755390612441,0.84488721,4416.4,4415.5,20.509]
[1755390612641,0.22148237,4416.3,4415.5,20.509]
[1755390612842,0.22148237,4416.2,4415.5,20.509]
[1755390613042,0.22148901,4416.1,4415.5,20.509]
[1755390613242,0.22148901,4416.0,4415.5,20.509]
[1755390613446,0.22148901,4415.9,4415.5,20.509]
[1755390613647,0.22148901,4415.8,4415.5,20.509]
[1755390613844,3.2078,4416.5,4415.5,20.509]
[1755390614044,0.84475587,4416.4,4415.5,20.509]
[1755390614246,0.22145825,4416.3,4415.5,20.509]
[1755390614442,0.22145825,4416.2,4415.5,20.509]
[1755390614643,0.22145825,4416.1,4415.5,20.509]
[1755390614844,0.22145825,4416.0,4415.5,20.509]
[1755390615044,0.22145825,4415.9,4415.5,20.509]
[1755390615246,0.22145825,4415.8,4415.5,20.509]
[1755390615544,3.2078,4416.5,4415.5,20.509]
[1755390615746,0.84465686,4416.4,4414.9,3.2078]
[1755390616050,0.2214325,4416.3,4415.0,20.508]
[1755390616251,0.2214325,4416.2,4415.0,20.508]
[1755390616451,3.2078,4416.0,4415.0,20.508]
[1755390616648,0.84455567,4415.9,4414.4,3.2078]
[1755390616852,3.2078,4415.5,4414.5,20.508]
[1755390617048,0.2214325,4415.4,4414.5,20.508]
[1755390617248,0.2214325,4415.3,4414.5,20.508]
[1755390617449,0.2214325,4415.2,4414.5,20.508]
[1755390617645,0.2214325,4415.1,4414.5,20.508]
[1755390617846,0.2214325,4415.0,4414.5,20.508]
[1755390618046,0.2214325,4414.9,4414.5,20.508]
[1755390618244,3.2078,4415.5,4414.5,20.508]
[1755390618442,0.22134635,4415.4,4414.5,20.508]
[1755390618649,0.22134635,4415.3,4414.5,20.508]
[1755390618853,0.22134635,4415.2,4414.5,20.508]
[1755390619052,0.22134635,4415.1,4414.5,20.508]
[1755390619253,0.22134635,4415.0,4414.5,20.508]
[1755390619455,3.2078,4415.5,4414.5,20.508]
[1755390619653,0.22132288,4415.4,4414.5,20.508]
[1755390619852,0.22132288,4415.3,4414.5,20.508]
[1755390620055,0.22132288,4415.2,4414.5,20.508]
[1755390620353,0.22132288,4415.1,4414.5,20.508]
[1755390620553,0.22132288,4415.0,4414.5,20.508]
[1755390620753,3.2078,4415.5,4414.5,20.508]
[1755390620954,0.22130151,4415.4,4414.5,20.508]
[1755390621156,0.22130151,4415.3,4414.5,20.508]
[1755390621453,0.22130151,4415.2,4414.4,3.2078]
[1755390621648,20.509,4417.4,4414.5,20.51]
[1755390621649,3.2078,4415.0,4414.5,20.51]
[1755390621853,0.22130151,4414.9,4414.5,20.51]
[1755390622158,0.22130151,4414.8,4414.5,20.51]
[1755390622347,0.22130151,4414.7,4414.5,20.51]
[1755390622545,0.22130151,4414.6,4414.5,20.51]
[1755390622750,0.22130151,4414.6,4414.1,20.51]
[1755390623055,3.2078,4415.0,4413.8,3.2078]
[1755390623056,0.22130151,4414.5,4413.8,3.2078]
[1755390623256,0.22130151,4414.4,4414.1,20.511]
[1755390623457,3.2078,4415.0,4414.1,20.511]
[1755390623657,0.22115,4414.9,4414.1,20.511]
[1755390623856,0.22115,4414.8,4414.1,20.511]
[1755390624055,3.2078,4415.0,4414.1,20.511]
[1755390624256,0.22115,4414.9,4414.1,20.511]
[1755390624456,0.22115,4414.8,4414.1,20.511]
[1755390624757,0.22115,4414.7,4414.1,20.511]
[1755390624954,0.22115,4414.6,4414.1,20.511]
[1755390625154,3.2078,4415.0,4414.1,20.511]
[1755390625354,0.22107833,4414.9,4414.3,3.2078]
[1755390625555,0.22107833,4414.8,4414.1,20.511]
[1755390625757,0.22107833,4414.7,4414.1,20.511]
[1755390625958,0.22107833,4414.6,4414.1,20.511]
[1755390626160,3.2078,4415.0,4414.1,20.511]
[1755390626459,0.22104529,4414.9,4414.1,20.511]
[1755390626660,0.22104529,4414.8,4414.1,20.511]
[1755390626851,0.22104529,4414.7,4414.1,20.511]
[1755390627058,3.2078,4415.5,4414.5,3.2078]
[1755390627259,0.84089903,4415.4,4414.5,3.2078]
[1755390627456,0.2163738,4415.3,4414.5,3.2078]
[1755390627658,0.2163738,4415.2,4414.5,3.2078]
[1755390627960,0.2163738,4415.1,4414.5,3.2078]
[1755390628160,0.2163738,4415.0,4414.5,3.2078]
[1755390628459,3.2078,4415.5,4414.5,3.2078]
[1755390628460,0.2163738,4414.9,4414.5,3.2078]
[1755390628661,3.2078,4415.5,4414.5,3.2078]
[1755390628862,0.21634327,4415.4,4414.5,3.2078]
[1755390629061,0.21634327,4415.3,4414.5,3.2078]
[1755390629259,0.21634327,4415.2,4414.5,3.2078]
[1755390629459,0.21634327,4415.1,4414.5,3.2078]
[1755390629661,0.5985,4415.1,4415.0,0.4028]
[1755390629961,0.81484161,4415.1,4415.0,1.2895]
[1755390630161,1.69684161,4415.1,4415.0,1.2895]
[1755390630361,1.69684161,4415.1,4415.0,1.0457]
[1755390631864,1.69684161,4415.1,4415.0,1.2895]
[1755390632767,1.69680082,4415.1,4415.0,1.2895]
[1755390633766,1.69680082,4415.1,4415.0,0.6629]
[1755390633964,1.69680082,4415.1,4414.7,0.6429]
[1755390634169,0.5985,4414.9,4414.8,0.6429]
[1755390634365,1.4805,4414.9,4414.8,0.6429]
[1755390634561,1.4805,4414.9,4414.0,3.2078]
[1755390634765,0.3402,4414.2,4414.1,21.9636]
[1755390635062,0.5844,4414.2,4414.1,0.9477]
[1755390635270,1.4805,4414.2,4414.1,1.4516]
[1755390641471,0.966,4414.2,4414.1,1.4516]
[1755390641667,0.5844,4414.2,4414.1,1.4516]
[1755390642266,0.966,4414.2,4414.1,1.4516]
[1755390642673,1.2222,4414.2,4414.1,1.4516]
[1755390642871,1.4805,4414.2,4414.1,1.4516]
[1755390646065,3.2078,4414.8,4414.1,1.4516]
[1755390646271,0.55714059,4414.7,4414.6,0.5649]
[1755390646470,1.69744059,4414.7,4414.6,1.4516]
[1755390647371,1.4805,4414.7,4414.6,1.4516]
[1755390647574,1.69758677,4414.7,4414.6,1.4516]
[1755390647769,1.69759149,4414.7,4414.6,1.4516]
[1755390647970,1.69759149,4414.7,4414.6,1.2078]
[1755390649179,1.44209006,4414.7,4414.5,20.513]
[1755390649384,2.32109295,4414.6,4414.5,20.513]
[1755390650186,2.32109295,4414.6,4414.0,3.4725]
[1755390650387,0.3412,4414.1,4414.0,3.6472]
[1755390650590,1.07189149,4414.1,4414.0,24.5816]
[1755390653394,1.07189149,4414.1,4414.0,23.8955]
[1755390653891,1.07189149,4414.1,4413.8,0.2647]
[1755390654090,0.90259149,4414.0,4413.9,20.513]
[1755390654285,1.07189149,4414.0,4413.9,20.513]
[1755390654488,1.07189149,4414.0,4413.9,20.9524]
[1755390654690,1.07189149,4414.0,4413.9,21.2117]
[1755390657795,1.07189149,4414.0,4413.9,21.3738]
[1755390658497,0.21709149,4414.0,4413.9,21.3738]
[1755390658691,0.2576,4414.2,4413.9,20.8498]
[1755390658896,0.21709149,4414.1,4414.0,0.6861]
[1755390659196,0.256,4414.4,4414.2,0.1621]
[1755390659498,0.22321848,4414.3,4414.2,0.1621]
[1755390659688,0.22321848,4414.3,4414.2,20.6971]
[1755390659893,0.48081848,4414.3,4414.2,20.9564]
[1755390660093,0.22321848,4414.3,4414.2,20.9564]
[1755390660293,0.48081848,4414.3,4414.2,20.9564]
[1755390660490,0.22321848,4414.3,4414.2,20.9564]
[1755390664298,0.48081848,4414.3,4414.2,20.9564]
[1755390665300,0.22321848,4414.3,4414.2,20.9564]
[1755390666904,0.2576,4414.6,4414.2,20.9564]
[1755390667109,0.65032015,4414.5,4414.4,0.1621]
[1755390667401,0.65032015,4414.5,4414.4,0.4214]
[1755390667898,0.22342015,4414.5,4414.4,0.4214]
[1755390668304,0.65032015,4414.5,4414.4,0.4214]
[1755390668808,0.22342015,4414.5,4414.4,0.4214]
[1755390669206,0.48102015,4414.5,4414.4,0.4214]
[1755390669408,0.65032015,4414.5,4414.4,0.4214]
[1755390670507,0.22342015,4414.5,4414.4,0.4214]
[1755390672910,0.65032015,4414.5,4414.4,0.4214]
[1755390673207,0.65032015,4414.5,4414.4,0.1621]
[1755390673408,0.65032015,4414.5,4414.4,0.4214]
[1755390675912,0.65027421,4414.5,4414.4,0.4214]
[1755390684520,0.4269,4414.5,4414.4,0.4214]
[1755390684719,0.65022105,4414.5,4414.4,0.4214]
[1755390685221,0.65022108,4414.5,4414.4,0.4214]
[1755390685424,0.65026043,4414.5,4414.4,0.4214]
[1755390687718,0.64554675,4414.5,4414.4,0.4214]
[1755390688424,0.64554675,4414.5,4414.4,0.87416]
[1755390688923,1.80097032,4416.3,4414.4,0.87416]
[1755390688924,0.2403,4415.6,4415.2,0.1723]
[1755390689124,0.62727961,4415.5,4415.4,3.6443]
[1755390689824,0.21877961,4415.5,4415.4,3.6443]
[1755390690221,0.2403,4415.8,4415.4,3.6443]
[1755390690422,0.45877152,4415.7,4415.6,0.4365]
[1755390691525,0.62697152,4415.7,4415.6,0.4365]
[1755390692225,0.4085,4415.7,4415.6,0.4365]
[1755390696425,0.2403,4416.5,4415.8,0.45262]
[1755390696630,0.4085,4416.0,4415.9,20.9455]
[1755390697221,0.2403,4416.5,4416.0,0.4526]
[1755390697427,0.4085,4416.5,4416.4,0.4365]
[1755390697631,0.62654657,4416.5,4416.4,20.9455]
[1755390698124,0.21804657,4416.5,4416.4,20.6813]
[1755390698329,0.2403,4417.0,4416.4,20.6813]
[1755390698330,0.4085,4417.0,4416.9,0.1723]
[1755390698530,0.626493,4417.0,4416.9,20.9445]
[1755390699332,0.4085,4417.0,4416.9,20.9445]
[1755390699527,3.2078,4417.8,4416.9,20.9445]
[1755390699730,0.38615574,4417.7,4417.6,0.1723]
[1755390699924,0.38615574,4417.7,4417.6,20.9475]
[1755390700236,0.1682,4417.7,4417.6,20.9475]
[1755390700532,0.4085,4417.7,4417.6,20.9475]
[1755390704134,0.1682,4417.7,4417.1,3.2078]
[1755390704329,0.4085,4417.2,4417.1,20.506]
[1755390704936,0.1682,4416.8,4416.7,20.6803]
[1755390705136,0.4085,4416.8,4416.7,20.6803]
[1755390705539,0.4085,4416.8,4416.7,20.9445]
[1755390706139,0.4085,4416.8,4416.7,20.6803]
[1755390706639,0.4085,4416.8,4416.7,20.508]
[1755390707642,0.4085,4416.8,4416.7,20.7619]
[1755390709340,0.4085,4416.8,4416.7,20.9314]
[1755390709841,0.4085,4416.8,4416.4,0.2539]
[1755390710044,0.409,4416.3,4415.9,0.2539]
[1755390710338,3.2078,4416.8,4415.6,3.2078]
[1755390710339,0.1679,4416.1,4416.0,20.509]
[1755390710541,0.1679,4415.2,4415.1,3.3773]
[1755390710737,0.409,4415.2,4415.1,24.1472]
[1755390711747,0.2411,4415.5,4415.1,24.1472]
[1755390712047,0.1679,4415.4,4415.3,0.1695]
[1755390712247,0.1679,4415.4,4415.3,0.4234]
[1755390712649,0.409,4415.4,4415.3,0.4234]
[1755390713444,0.65,4415.4,4415.3,0.6698]
[1755390713644,1.0487,4415.4,4415.3,1.0502]
[1755390714151,1.0487,4415.3,4415.2,1.0502]
[1755390716344,1.0487,4415.3,4415.2,0.5003]
[1755390716550,1.0487,4415.3,4415.2,1.0502]
[1755390719554,1.0487,4415.3,4415.1,23.7238]
[1755390719754,1.0487,4415.2,4415.1,3.2078]
[1755390719950,1.0487,4414.5,4414.4,4.258]
[1755390720144,1.0487,4414.5,4414.4,24.781]
[1755390721258,1.0487,4414.5,4414.4,24.783]
[1755390721556,1.0487,4414.5,4414.4,23.7328]
[1755390722355,1.4807,4414.5,4414.4,23.7328]
[1755390723258,1.4807,4414.5,4414.4,24.3661]
[1755390723458,1.4807,4414.5,4414.4,25.031]
[1755390723851,1.4807,4414.5,4414.4,21.8232]
[1755390724654,1.4807,4414.5,4414.4,20.525]
[1755390725256,1.4807,4414.5,4414.4,20.7779]
[1755390725561,1.4807,4414.5,4414.4,21.1583]
[1755390725763,0.5778,4414.5,4413.9,3.2078]
[1755390725960,3.2078,4415.2,4414.3,0.1646]
[1755390725961,1.4807,4414.4,4414.3,0.1646]
[1755390726266,1.4807,4414.4,4414.3,21.9947]
[1755390728953,1.4807,4414.4,4414.3,20.938]
[1755390729159,1.4807,4414.4,4414.3,21.9947]
[1755390730260,0.841,4414.4,4414.3,21.3679]
[1755390730565,0.6397,4414.4,4414.3,21.7408]
[1755390730763,0.8808,4414.4,4414.3,21.9947]
[1755390730964,1.2176,4414.4,4414.3,21.9947]
[1755390731263,1.4807,4414.4,4414.3,21.9947]
[1755390733959,0.841,4414.4,4414.3,21.3679]
[1755390734155,0.841,4414.4,4414.3,20.8611]
[1755390734360,0.841,4414.4,4414.3,21.3679]
[1755390735760,0.5779,4414.4,4414.3,21.3679]
[1755390735964,0.841,4414.4,4414.3,21.3679]
[1755390737360,0.841,4414.4,4414.3,0.4175]
[1755390737562,0.8391,4413.9,4413.8,0.4369]
[1755390737760,0.8391,4413.9,4413.8,21.2042]
[1755390737961,0.8391,4413.9,4413.8,21.3696]
[1755390740462,0.8391,4413.9,4413.8,0.8496]
[1755390740663,0.8391,4413.9,4413.8,21.3736]
[1755390745263,1.05616692,4413.9,4413.8,21.3736]
[1755390755775,0.80166692,4413.9,4413.8,20.6999]
[1755390756069,1.05616692,4413.9,4413.8,21.3736]
[1755390756767,0.21706692,4413.9,4413.8,21.3736]
[1755390756973,0.21726489,4413.9,4413.8,21.3736]
[1755390757165,0.47096489,4413.9,4413.8,21.3736]
[1755390757667,1.05636489,4413.9,4413.8,21.3736]
[1755390763071,1.05641332,4413.9,4413.8,21.3736]
[1755390764474,0.80191332,4413.9,4413.8,21.3736]
[1755390764677,1.05641332,4413.9,4413.8,21.3736]
[1755390764976,1.05648697,4413.9,4413.8,21.3736]
[1755390767379,1.68268898,4413.9,4413.8,21.3736]
[1755390768976,1.05684083,4413.9,4413.8,21.3736]
[1755390774674,1.05682192,4413.9,4413.8,21.3736]
[1755390776482,0.8391,4413.9,4413.8,21.3736]
[1755390776678,1.05682085,4413.9,4413.8,21.3736]
[1755390777079,1.68291827,4413.9,4413.8,21.3736]
[1755390777279,1.05682085,4413.9,4413.8,21.3736]
[1755390779082,1.68289721,4413.9,4413.8,21.3736]
[1755390781680,1.68289721,4413.9,4413.8,0.8496]
[1755390781880,1.68289721,4413.9,4413.8,21.3656]
[1755390782775,0.3326,4413.5,4413.4,3.5406]
[1755390782982,1.07192085,4413.5,4413.4,24.3189]
[1755390783181,1.07192085,4413.5,4413.4,24.5729]
[1755390784983,0.21772085,4413.5,4413.4,24.5729]
[1755390788791,0.21772085,4413.5,4413.4,24.1392]
[1755390789090,0.21772085,4413.5,4413.4,24.5729]
[1755390790088,0.64542085,4413.5,4413.4,24.5729]
[1755390790283,0.38562085,4413.5,4413.4,24.1575]
[1755390790585,0.64542085,4413.5,4413.4,24.1575]
[1755390790985,0.64542085,4413.5,4413.4,24.4115]
[1755390791287,0.64542085,4413.5,4413.4,24.5729]
[1755390791491,0.64542085,4413.5,4413.4,24.3189]
[1755390791787,0.64542085,4413.5,4413.4,24.5729]
[1755390792378,0.64542085,4413.5,4413.4,24.1392]
[1755390793988,1.28342085,4413.5,4413.4,24.7713]
[1755390794380,1.28268536,4413.5,4413.4,24.7713]
[1755390799194,1.28268536,4413.5,4413.4,4.2553]
[1755390799394,1.28268536,4413.5,4413.4,24.7703]
[1755390799590,1.28268536,4413.5,4413.4,24.2254]
[1755390799794,1.28268536,4413.5,4413.4,24.5966]
[1755390800292,1.28268536,4413.5,4413.4,24.7655]
[1755390800494,1.28268536,4413.5,4413.4,4.2505]
[1755390800692,1.28268536,4413.5,4413.4,23.9841]
[1755390801293,1.28268536,4413.5,4413.4,3.2078]
[1755390801595,1.28268536,4413.5,4413.4,23.7228]
[1755390802292,1.28268536,4413.5,4413.4,3.2078]
[1755390802600,1.90783848,4413.5,4413.4,20.515]
[1755390803901,1.0508,4412.8,4412.7,1.0427]
[1755390804196,1.26778536,4412.8,4412.7,21.5577]
[1755390805898,0.65248536,4412.8,4412.7,21.3164]
[1755390806103,1.02518536,4412.8,4412.7,21.5577]
[1755390809307,1.02373031,4412.8,4412.7,21.1475]
[1755390809507,0.65103031,4412.8,4412.7,20.515]
[1755390809705,0.65103031,4412.8,4412.7,20.9252]
[1755390811210,0.4355,4412.8,4412.7,20.9252]
[1755390812707,0.2607,4412.7,4412.1,3.2078]
[1755390812908,0.1748,4412.2,4411.6,3.2078]
[1755390813210,0.4355,4412.1,4412.0,0.4102]
[1755390813410,0.4355,4412.1,4412.0,20.9272]
[1755390814410,0.2607,4412.5,4412.0,20.9272]
[1755390814604,0.2607,4412.4,4412.3,0.4102]
[1755390814800,0.4355,4412.4,4412.3,20.9262]
[1755390822513,0.4355,4412.4,4412.3,20.516]
[1755390822714,0.65066609,4412.4,4412.3,20.516]
[1755390822916,0.65066538,4412.4,4412.3,20.516]
[1755390823116,0.4355,4412.4,4412.3,20.516]
[1755390823318,0.65067,4412.4,4412.3,20.516]
[1755390823718,0.65067,4412.4,4412.3,20.7573]
[1755390823920,0.4355,4412.4,4412.3,20.9262]
[1755390825220,0.65070252,4412.4,4412.3,20.9262]
[1755390825717,0.2607,4413.0,4412.4,0.2413]
[1755390826021,0.2607,4413.0,4412.3,20.516]
[1755390826022,0.65070965,4412.9,4412.8,0.4102]
[1755390828022,0.65070965,4412.9,4412.6,0.2417]
[1755390828225,0.1686,4412.7,4412.6,0.4131]
[1755390828525,0.62730965,4412.7,4412.6,0.4131]
[1755390829126,0.1686,4412.5,4412.4,0.2417]
[1755390829327,0.4121,4412.4,4412.3,20.516]
[1755390829514,0.62730965,4412.4,4412.3,20.516]
[1755390830824,0.4121,4412.1,4412.0,20.518]
[1755390831025,0.62730965,4412.1,4412.0,20.518]
[1755390831225,0.62730965,4412.1,4411.5,3.3792]
[1755390831226,0.1686,4411.6,4411.5,3.3792]
[1755390831525,0.4121,4411.6,4411.5,3.6209]
[1755390831926,0.2435,4412.5,4411.6,0.2417]
[1755390832126,0.4121,4412.5,4412.4,0.4131]
[1755390832328,1.25162974,4412.5,4412.4,0.4131]
[1755390832518,1.46723889,4412.5,4412.4,0.4131]
[1755390832923,1.46722948,4412.5,4412.4,0.4131]
[1755390836831,1.46729303,4412.5,4412.4,0.4131]
[1755390838833,1.05519303,4412.5,4412.4,0.4131]
[1755390839033,0.43127244,4412.5,4412.4,0.4131]